fUSD/lending_fUSD_20240620
["ID","MTS","AMOUNT","RATE_DAILY","PERIOD"]
[330001707,1718915432792,-47304.5938,0.00014889,2]
[330001708,1718915432803,-89030.8109,0.00014889,2]
[330001709,1718915432812,-3286.3388,0.00014889,2]
[330001710,1718915432821,-500.0,0.00014889,2]
[330001711,1718915432831,-1000.0,0.00014889,2]
[330001712,1718915432842,-316.98370202,0.0001489,2]
[330001713,1718915432853,-160.7955029,0.000149,2]
[330001714,1718915432863,-21007.45594627,0.000149,2]
[330001715,1718915432873,-182.217146,0.000149,2]
[330001716,1718915432883,-2262.0,0.000149,2]
[330001717,1718915432893,-1400.0,0.000149,5]
[330001718,1718915432904,-7500.0,0.000149,2]
[330001719,1718915432915,-426.07187254,0.000149,2]
[330001720,1718915432925,-1915.0,0.000149,2]
[330001721,1718915432934,-162.19706699,0.000149,2]
[330001722,1718915432944,-529.49575669,0.00014903,2]
[330001723,1718915432953,-219.9,0.00014904,3]
[330001724,1718915432963,-172.25,0.00014948,2]
[330001725,1718915432973,-943.70873254,0.00014967,2]
[330001726,1718915432983,-597.68,0.00014967,2]
[330001727,1718915432993,-597.68,0.00014967,2]
[330001728,1718915433003,-597.68,0.00014967,2]
[330001729,1718915433013,-597.68,0.00014967,2]
[330001730,1718915433023,-597.68,0.00014967,2]
[330001731,1718915433033,-597.68,0.00014967,2]
[330001732,1718915433043,-597.68,0.00014967,2]
[330001733,1718915433053,-597.68,0.00014967,2]
[330001734,1718915433064,-597.68,0.00014967,2]
[330001735,1718915433073,-597.68,0.00014967,2]
[330001736,1718915433083,-597.68,0.00014967,2]
[330001737,1718915433092,-597.68,0.00014967,2]
[330001738,1718915433101,-597.68,0.00014967,2]
[330001739,1718915433110,-597.68,0.00014967,2]
[330001740,1718915433120,-597.68,0.00014967,2]
[330001741,1718915433129,-597.68,0.00014967,2]
[330001742,1718915433139,-597.68,0.00014967,2]
[330001743,1718915433148,-597.68,0.00014967,2]
[330001744,1718915433158,-597.68,0.00014967,2]
[330001745,1718915433169,-597.68,0.00014967,2]
[330001746,1718915433178,-597.68,0.00014967,2]
[330001747,1718915433187,-597.68,0.00014967,2]
[330001748,1718915433201,-597.68,0.00014967,2]
[330001749,1718915433211,-597.7,0.00014967,2]
[330001750,1718915433222,-1000.0,0.00014968,2]
[330001751,1718915433232,-10000.0,0.00014968,2]
[330001752,1718915433243,-4637.247993,0.00014989,2]
[330001753,1718915433252,-68782.5726773,0.00014989,2]
[330001754,1718915433262,-7094.4257109,0.00014989,2]
[330001755,1718915433272,-227.89366087,0.0001499,2]
[330001756,1718915433281,-212.3528203,0.0001499,2]
[330001757,1718915433292,-103218.24915375,0.00015,2]
[330001758,1718915433306,-804.43551989,0.00015,2]
[330001759,1718915433318,-4698.92261733,0.00015,2]
[330001760,1718915433331,-256.269,0.00015,2]
[330001761,1718915433342,-10064.369304,0.00015,2]
[330001762,1718915433354,-862.021,0.00015,2]
[330001763,1718915433377,-327.39805379,0.0001484,2]
[330001764,1718915433389,-71.69377638,0.0001484,2]
[330001765,1718915433398,-97748.86106231,0.00015,2]
[330001766,1718915433413,-746.06435285,0.00015,2]
[330001767,1718915433428,-621.28822806,0.00015,2]
[330001768,1718915433440,-345.5,0.00015,2]
[330001769,1718915433451,-3144.07254094,0.00015,2]
[330001770,1718915433487,237.0,0.0001498,30]
[330001771,1718915433546,159.0,0.0001497,30]
[330001791,1718915438507,-399.09183017,0.0001484,2]
[330001792,1718915438516,-399.09183017,0.00014869,2]
[330001793,1718915438526,-399.09183017,0.00014869,2]
[330001794,1718915438535,-399.09183017,0.00014869,2]
[330001795,1718915438545,-399.09183017,0.00014869,2]
[330001796,1718915438554,-399.09183017,0.00014869,2]
[330001797,1718915438564,-399.09183017,0.00014869,2]
[330001798,1718915438573,-399.09183017,0.0001487,2]
[330001799,1718915438583,-399.09183017,0.00014879,2]
[330001800,1718915438593,-399.09183017,0.00014879,2]
[330001801,1718915438602,-399.09183017,0.00014879,2]
[330001802,1718915438612,-399.09183017,0.00014879,2]
[330001803,1718915438621,-399.09183017,0.00014879,2]
[330001804,1718915438631,-399.09183017,0.00014879,2]
[330001805,1718915438640,-399.09183017,0.00014879,2]
[330001806,1718915438650,-275.42843452,0.00014879,2]
[330001807,1718915438685,-123.66339565,0.00014879,2]
[330001808,1718915438695,-239.65302965,0.00014879,2]
[330001809,1718915438736,-238.34053135,0.0001467,2]
[330001810,1718915438746,-63.183763,0.00014879,2]
[330001811,1718915438757,-96.25503752,0.00014879,2]
[330001812,1718915438771,-399.09183017,0.00014879,2]
[330001813,1718915438780,-399.09183017,0.00014879,2]
[330001814,1718915438790,-399.09183017,0.00014879,2]
[330001815,1718915438799,-399.09183017,0.00014879,2]
[330001816,1718915438811,-399.09183017,0.00014879,2]
[330001817,1718915438820,-399.09183017,0.00014879,2]
[330001818,1718915438829,-537.17043537,0.00014899,2]
[330001819,1718915438839,-9098.6512625,0.00015,2]
[330001820,1718915438879,-1068.1986391,0.00015,2]
[330001825,1718915440376,-399.09183017,0.00014879,2]
[330001826,1718915440386,-399.09183017,0.00014879,2]
[330001827,1718915440396,-399.09183017,0.00014879,2]
[330001828,1718915440407,-399.09183017,0.00014879,2]
[330001829,1718915440416,-399.09183017,0.00014879,2]
[330001830,1718915440427,-399.09183017,0.00014879,2]
[330001831,1718915440437,-382.90316066,0.000149,2]
[330001832,1718915440446,-133696.74865976,0.00015,2]
[330001833,1718915440456,-137399.9702357,0.00015,2]
[330001834,1718915440777,-1100.0,0.00015,2]
[330001835,1718915440789,-941.05466901,0.00015,2]
[330001836,1718915440806,-139751.69858493,0.00015,2]
[330001837,1718915440891,-22190.91109511,0.00015,2]
[330001838,1718915440903,-361.32,0.00015,2]
[330001839,1718915440916,-432.917,0.00015,2]
[330001840,1718915440928,-1065.34901445,0.00015,2]
[330001841,1718915440940,-524.6883594,0.00015,2]
[330001842,1718915440952,-866.86575606,0.00015,2]
[330001843,1718915440964,-1788.42667565,0.00015,2]
[330001844,1718915441013,-32783.29276291,0.00015,2]
[330001845,1718915441024,-4661.7770805,0.00015,2]
[330001856,1718915443121,-137698.0,0.00015,2]
[330001857,1718915443138,-507.53028692,0.00015,2]
[330001858,1718915443150,-1035.63853184,0.00015,2]
[330001859,1718915443435,-88511.44653925,0.00015,2]
[330001860,1718915443445,-10000.0,0.00015,2]
[330001861,1718915443454,-500.0,0.00015,2]
[330001862,1718915443463,-2000.0,0.00015,2]
[330001863,1718915443473,-490.0,0.00015,2]
[330001864,1718915443482,-490.0,0.00015,2]
[330001865,1718915443491,-490.0,0.00015,2]
[330001866,1718915443500,-560030.92753421,0.00015,2]
[330001873,1718915446103,-399.09183017,0.00014879,2]
[330001874,1718915446113,-348.16568903,0.00014879,2]
[330001875,1718915446127,-50.92614114,0.00014879,2]
[330001876,1718915446137,-399.09183017,0.00014879,2]
[330001877,1718915446146,-399.09183017,0.00014879,2]
[330001878,1718915446156,-399.09183017,0.00014879,2]
[330001879,1718915446167,-399.09183017,0.00014879,2]
[330001880,1718915446176,-399.09183017,0.00014879,2]
[330001881,1718915446186,-399.09183017,0.00014879,2]
[330001882,1718915446195,-1400.25202117,0.00015,2]
[330001883,1718915446205,-422.91126348,0.00015,2]
[330001884,1718915446217,-6160.14077791,0.00015,2]
[330001885,1718915446230,-281.38011475,0.00015,2]
[330001886,1718915446241,-6503.83148737,0.00015,2]
[330001887,1718915446267,-399.09183017,0.00014879,2]
[330001888,1718915446277,-292.63802218,0.00015,2]
[330001892,1718915446622,-218457.33319033,0.00015,2]
[330001895,1718915446631,-200.0,0.00015,2]
[330001898,1718915446640,-200.0,0.00015,2]
[330001901,1718915446650,-200.0,0.00015,2]
[330001904,1718915446659,-200.0,0.00015,2]
[330001907,1718915446669,-200.0,0.00015,2]
[330001909,1718915446678,-200.0,0.00015,2]
[330001911,1718915446687,-200.0,0.00015,2]
[330001913,1718915446696,-200.0,0.00015,2]
[330001915,1718915446706,-200.0,0.00015,2]
[330001917,1718915446715,-200.0,0.00015,2]
[330001919,1718915446724,-200.0,0.00015,2]
[330001921,1718915446733,-200.0,0.00015,2]
[330001923,1718915446743,-200.0,0.00015,2]
[330001925,1718915446751,-200.0,0.00015,2]
[330001927,1718915446761,-200.0,0.00015,2]
[330001929,1718915446776,-200.0,0.00015,2]
[330001931,1718915446785,-200.0,0.00015,2]
[330001933,1718915446794,-66006.97674141,0.00015,2]
[330001935,1718915446807,-715.99809588,0.00015,2]
[330001937,1718915446818,-1146.8840397,0.00015,2]
[330001941,1718915446841,-399.09183017,0.00014879,2]
[330001943,1718915446852,-1741.82416983,0.00015,2]
[330001945,1718915446864,-2874.13903805,0.00015,2]
[330001947,1718915446875,-7137.84737199,0.00015,2]
[330001949,1718915446886,-1374.66587947,0.00015,2]
[330002126,1718915634851,4007.75294274,9e-05,2]
[330002127,1718915735842,267.62549217,0.00015,14]
[330002128,1718915792789,150.5,0.0001499,30]
[330002129,1718915793343,150.5,0.0001498,30]
[330002130,1718915793854,150.5,0.0001497,30]
[330002131,1718916152051,150.5,0.0001499,30]
[330002132,1718916152580,150.5,0.0001498,30]
[330002133,1718916153105,150.5,0.0001497,30]
[330002196,1718916512392,216.62,0.0001499,30]
[330002210,1718916632356,-447.1,0.00011667,2]
[330002212,1718916632365,-150.0,0.000118,2]
[330002213,1718916632374,-178.4933045,0.000119,2]
[330002214,1718916632384,-156.2908,0.000119,2]
[330002215,1718916632394,-163.30731796,0.00012,2]
[330002216,1718916632406,-1485.66317994,0.00012,2]
[330002217,1718916632417,-372.55070572,0.00012,2]
[330002218,1718916632427,-162.44,0.00013437,2]
[330002219,1718916632436,-250.0,0.00013491,2]
[330002220,1718916632446,-62.01771999,0.0001355,2]
[330002221,1718916632457,-99.09228001,0.0001355,2]
[330002222,1718916632467,-292.80921999,0.00013588,2]
[330002223,1718916632478,-700.0,0.00013588,2]
[330002224,1718916632489,-1470.07078001,0.00013588,2]
[330002225,1718916632499,-10000.0,0.00013588,2]
[330002226,1718916632508,-250.0,0.00013588,2]
[330002227,1718916632518,-955.04,0.00013588,2]
[330002228,1718916632527,-1000.0,0.00013607,2]
[330002229,1718916632537,-178.34,0.00013699,2]
[330002230,1718916632546,-240.72,0.00013711,2]
[330002231,1718916632556,-178.4933045,0.000138,2]
[330002232,1718916632566,-3958.65,0.00013899,2]
[330002233,1718916632575,-165.17639423,0.000139,2]
[330002234,1718916632584,-183.49904561,0.000139,2]
[330002235,1718916632594,-28559.50257673,0.000139,2]
[330002236,1718916632603,-266.32,0.000139,2]
[330002237,1718916632613,-300.0,0.000139,5]
[330002238,1718916632622,-209.44336304,0.000139,2]
[330002239,1718916632631,-171.23756326,0.000139,2]
[330002240,1718916632641,-309.42293782,0.000139,2]
[330002241,1718916632651,-537.03055531,0.000139,2]
[330002242,1718916632660,-447.1,0.00013931,2]
[330002243,1718916632671,-254.44929041,0.0001399,2]
[330002244,1718916632682,-150.0,0.00014,2]
[330002245,1718916632692,-140546.45804692,0.00014,2]
[330002246,1718916632708,-404.7199998,0.00014,2]
[330002247,1718916632720,-483.71393226,0.00014,2]
[330002248,1718916632731,-1361.45276237,0.00014,2]
[330002249,1718916632743,-1042.16772,0.00014,2]
[330002250,1718916632754,-3682.03172911,0.00014,2]
[330002251,1718916632766,-255.97559429,0.00014,2]
[330002252,1718916632777,-448.74875887,0.00014,2]
[330002253,1718916632796,-627.08000007,0.00014,2]
[330002254,1718916632807,-404.72999987,0.00014,2]
[330002255,1718916632819,-19359.85007386,0.00014,2]
[330002256,1718916632830,-999.6,0.00014,2]
[330002257,1718916632841,-999.9006,0.00014,2]
[330002258,1718916632853,-1000.3932,0.00014,2]
[330002259,1718916632864,-734.6075021,0.00014,2]
[330002260,1718916632877,-544.02,0.00014,2]
[330002261,1718916632892,-949.15901314,0.00014,2]
[330002262,1718916632904,-615.25441392,0.00014,2]
[330002263,1718916632919,-600.0,0.00014,2]
[330002264,1718916632931,-9137.35989155,0.00014,2]
[330002266,1718916638245,-1055.98696552,0.00014,2]
[330002267,1718916638276,-751.676,0.00014,2]
[330002268,1718916638392,-9031.69289579,0.00014,2]
[330002269,1718916638421,-86372.10000157,0.00014,2]
[330002270,1718916638433,-724.14330428,0.00014,2]
[330002271,1718916638527,-26078.903619,0.00014,2]
[330002272,1718916638539,-7022.38254443,0.00014,2]
[330002273,1718916638550,-2562.41571475,0.00014,2]
[330002274,1718916638561,-614.60701448,0.00014,2]
[330002275,1718916638573,-584.58233677,0.00014,2]
[330002277,1718916638596,-10133.51059673,0.00014,2]
[330002312,1718916640448,-761.73691765,0.00014,2]
[330002313,1718916640496,-262.79677064,0.00014,2]
[330002314,1718916640507,-4120.41378207,0.00014,2]
[330002315,1718916640701,-336.26271099,0.00014,2]
[330002316,1718916640811,-658.39,0.00014,2]
[330002317,1718916640922,-1129.499998,0.00014,2]
[330002318,1718916640934,-4567.28728259,0.00014,2]
[330002319,1718916640945,-364.51668827,0.00014,2]
[330002337,1718916643580,-9940.77185214,0.00014,2]
[330002357,1718916646448,-584.74,0.00014,2]
[330002358,1718916646461,-832.5270681,0.00014,2]
[330002359,1718916646485,-13690.82341382,0.00014,2]
[330002360,1718916646519,-301.33416204,0.00014,2]
[330002361,1718916646659,-537.02937486,0.00014,2]
[330002362,1718916646675,-2414.98674344,0.00014,2]
[330002363,1718916646768,-3404.49953242,0.00014,2]
[330002387,1718917831781,-402.39,0.00011882,2]
[330002388,1718917831791,-2374.53515352,0.00013106,2]
[330002389,1718917831801,-250.0,0.00013123,2]
[330002390,1718917831811,-250.0,0.00013271,2]
[330002391,1718917831820,-636.02,0.00013276,2]
[330002392,1718917831830,-800.0,0.00013487,2]
[330002393,1718917831841,-689.84321941,0.00013599,2]
[330002394,1718917831851,-689.84321941,0.00013599,2]
[330002395,1718917831861,-180.59,0.00013671,2]
[330002396,1718917831871,-240.72,0.00013699,2]
[330002397,1718917831881,-178.34,0.00013699,2]
[330002398,1718917831890,-5543.71840766,0.00013789,2]
[330002399,1718917831914,-44.97963773,0.00013789,2]
[330002400,1718917831924,-499.99,0.00013799,2]
[330002401,1718917831933,-58.53836229,0.000138,2]
[330002402,1718917832033,-941.46163771,0.000138,2]
[330002403,1718917832043,-282.53836229,0.000138,2]
[330002419,1718917837710,-726.46163771,0.000138,2]
[330002420,1718917837720,-1000.0,0.000138,2]
[330002421,1718917837729,-720.51303935,0.000138,2]
[330002422,1718917837741,-279.48696065,0.000138,2]
[330002423,1718917837751,-1000.0,0.000138,2]
[330002424,1718917837760,-757.0,0.000138,2]
[330002425,1718917837770,-1003.0,0.000138,2]
[330002426,1718917837780,-751.9144439,0.000138,2]
[330002427,1718917837789,-1723.61,0.00013836,2]
[330002428,1718917837798,-3207.3552,0.000139,2]
[330002429,1718917837807,-937.985,0.000139,2]
[330002430,1718917837817,-1296.99623221,0.000139,2]
[330002431,1718917837841,-1138.18072319,0.000139,2]
[330002432,1718917837867,-10219.39772,0.000139,2]
[330002433,1718917837883,-722.0,0.000139,2]
[330002434,1718917837900,-3262.26619703,0.000139,2]
[330002435,1718917837942,-18169.97712757,0.000139,2]
[330002436,1718917837959,-832.2808,0.000139,2]
[330002437,1718917837974,-1390.5935,0.000139,2]
[330002438,1718917837990,-221.6582,0.000139,2]
[330002441,1718917838006,-24378.5137,0.000139,2]
[330002443,1718917838021,-28434.4433,0.000139,2]
[330002445,1718917838033,-397.4009,0.000139,2]
[330002448,1718917838045,-500.0,0.000139,2]
[330002450,1718917838059,-1000.0,0.000139,2]
[330002453,1718917838073,-10000.0,0.000139,2]
[330002455,1718917838086,-469.90173587,0.000139,2]
[330002459,1718917838102,-9651.48869874,0.000139,2]
[330002461,1718917838118,-300.0,0.000139,5]
[330002464,1718917838131,-167.55469044,0.000139,2]
[330002466,1718917838147,-309.42293781,0.000139,2]
[330002468,1718917838158,-162.19706697,0.000139,2]
[330002470,1718917838173,-162.58446196,0.000139,2]
[330002473,1718917838187,-751.9144439,0.000139,2]
[330002475,1718917838199,-155.0,0.00013908,2]
[330002477,1718917838211,-200.0,0.00013909,2]
[330002478,1718917838230,-209.88350116,0.0001394,2]
[330002479,1718917838241,-199.01239855,0.00013972,2]
[330002480,1718917838254,-3824.06,0.00013973,2]
[330002481,1718917838280,-855.14427,0.00013973,2]
[330002482,1718917838294,-2003.09450399,0.0001399,2]
[330002483,1718917838308,-68096.23922576,0.00014,2]
[330002484,1718917838330,-34131.10031595,0.00014,2]
[330002486,1718917840427,-740.71323686,0.00011782,2]
[330002503,1718917842836,-3474.56736314,0.00011782,2]
[330002504,1718917842846,-10013.63266481,0.00014,2]
[330002512,1718917845884,-17815.86849114,0.00014,2]
[330002513,1718917846088,-546.47514523,0.00014,2]
[330002553,1718918734470,155.0,0.00016969,120]
[330002554,1718918754474,155.0,0.00016969,120]
[330002555,1718918796469,155.0,0.00020568,120]
[330002560,1718918872474,173.41426495,0.0002493,120]
[330002568,1718919032030,-455.93,0.00011342,2]
[330002569,1718919032040,-250.0,0.00012768,2]
[330002570,1718919032051,-59.36022052,0.00013012,2]
[330002571,1718919032094,-400.84517948,0.00013012,2]
[330002572,1718919032103,-1428.153875,0.00013041,2]
[330002573,1718919032113,-829.59,0.00013107,2]
[330002574,1718919032123,-1000.0,0.00013126,2]
[330002575,1718919032132,-162.44,0.00013154,2]
[330002576,1718919032141,-158.93,0.00013238,2]
[330002577,1718919032151,-400.0,0.000133,4]
[330002578,1718919032161,-250.0,0.00013324,2]
[330002579,1718919032170,-800.0,0.000134,4]
[330002580,1718919032179,-1000.0,0.00013475,2]
[330002581,1718919032189,-615.40449296,0.000135,4]
[330002582,1718919032201,-584.59550704,0.000135,4]
[330002583,1718919032210,-315.7795185,0.00013578,2]
[330002584,1718919032222,-59.8004815,0.00013578,2]
[330002585,1718919032231,-150.0,0.00013599,2]
[330002586,1718919032240,-150.0,0.00013599,2]
[330002587,1718919032252,-300.0,0.00013599,2]
[330002588,1718919032262,-36.97383452,0.000136,4]
[330002589,1718919032274,-452.75892829,0.000136,4]
[330002590,1718919032288,-1210.26723719,0.000136,4]
[330002591,1718919032298,-500.0,0.00013605,2]
[330002592,1718919032308,-455.93,0.00013606,2]
[330002593,1718919032318,-500.0,0.00013608,2]
[330002594,1718919032328,-179.97,0.00013609,2]
[330002595,1718919032338,-499.99,0.00013699,2]
[330002596,1718919032348,-252.66,0.00013699,2]
[330002597,1718919032358,-189.18,0.00013699,2]
[330002598,1718919032367,-2100.0,0.000137,5]
[330002599,1718919032377,-150.0,0.00013778,2]
[330002600,1718919032388,-2374.53515352,0.00013789,2]
[330002601,1718919032397,-400.0,0.000138,5]
[330002602,1718919032406,-3000.0,0.0001386,2]
[330002603,1718919032415,-2827.09682855,0.00013899,2]
[330002605,1718919032424,-5655.6554,0.000139,2]
[330002607,1718919032433,-3261.1983,0.000139,2]
[330002609,1718919032442,-9568.8169,0.000139,2]
[330002610,1718919032451,-4578.1594,0.000139,2]
[330002611,1718919032460,-166.79469595,0.000139,2]
[330002612,1718919032471,-183.4990456,0.000139,2]
[330002613,1718919032481,-26179.54402866,0.000139,2]
[330002614,1718919032491,-400.0,0.000139,5]
[330002615,1718919032503,-842.39939051,0.000139,2]
[330002616,1718919032512,-519.38498816,0.000139,2]
[330002617,1718919032521,-8853.64572912,0.000139,2]
[330002618,1718919032530,-3289.31215088,0.000139,2]
[330002619,1718919032539,-308.59247045,0.000139,2]
[330002620,1718919032549,-255.26877376,0.000139,2]
[330002621,1718919032558,-7500.0,0.000139,2]
[330002622,1718919032567,-201.39580508,0.000139,2]
[330002623,1718919032576,-184.29208948,0.00013942,2]
[330002624,1718919032586,-1000.0,0.00013999,2]
[330002625,1718919032595,-221.62569577,0.00013999,2]
[330002626,1718919032604,-150.0,0.00013999,2]
[330002627,1718919032614,-74320.14909604,0.00014,2]
[330002628,1718919032626,-650.01339646,0.00014,2]
[330002629,1718919032637,-2813.97375158,0.00014,2]
[330002630,1718919032667,-2000.0,0.00014,2]
[330002631,1718919032678,-11394.87559311,0.00014,2]
[330002632,1718919032697,-448.12958754,0.00014,2]
[330002633,1718919032708,-7450.39419363,0.00014,2]
[330002634,1718919032735,-150.99,0.00013324,2]
[330002635,1718919032744,-538.31241408,0.00014,2]
[330002640,1718919038036,-1603.93060911,0.00014,2]
[330002641,1718919038136,-362.76767443,0.00014,2]
[330002642,1718919038382,-977.69249947,0.00014,2]
[330002644,1718919038393,-335.76750053,0.00014,2]
[330002647,1718919038405,-6509.72141582,0.00014,2]
[330002649,1718919038416,-579.18569721,0.00014,2]
[330002824,1718919040335,-155.0,0.00013999,2]
[330002826,1718919040346,-6376.54316371,0.00014,2]
[330002828,1718919040360,-1096.04159675,0.00014,2]
[330002830,1718919040372,-4341.68845553,0.00014,2]
[330002833,1718919040385,-33330.72678401,0.00014,2]
[330002835,1718919040397,-987.22897559,0.00014,2]
[330002854,1718919040576,-1975.43854639,0.00014,2]
[330002856,1718919040588,-1011.59816096,0.00014,2]
[330002858,1718919040601,-62066.33409636,0.00014,2]
[330002860,1718919040613,-2495.58714316,0.00014,2]
[330002867,1718919040669,-10841.83955116,0.00014,2]
[330003039,1718919043149,-1013.27421864,0.00014,2]
[330003040,1718919043161,-258.21078519,0.00014,2]
[330003041,1718919043172,-351.80830742,0.00014,2]
[330003042,1718919043230,-33340.24392775,0.00014,2]
[330003043,1718919043297,-404.2358468,0.00014,2]
[330003044,1718919043308,-397.66172814,0.00014,2]
[330003045,1718919043319,-5674.07817383,0.00014,2]
[330003046,1718919043330,-566.03091429,0.00014,2]
[330003047,1718919043368,-384.35646787,0.00014,2]
[330003048,1718919043380,-3044.9718221,0.00014,2]
[330003049,1718919043391,-1377.3667903,0.00014,2]
[330003050,1718919043442,-806.1100004,0.00014,2]
[330003051,1718919043453,-899.58260577,0.00014,2]
[330003052,1718919043464,-888.50000003,0.00014,2]
[330003053,1718919043476,-12387.60499801,0.00014,2]
[330003054,1718919043487,-3978.63742915,0.00014,2]
[330003144,1718919046202,-218.75970023,0.000139,2]
[330003145,1718919046212,-57.15929977,0.00014,2]
[330003146,1718919046297,-989.81965962,0.00014,2]
[330003147,1718919046312,-35254.20454104,0.00014,2]
[330003148,1718919046323,-389.63124367,0.00014,2]
[330003149,1718919046335,-6254.49072629,0.00014,2]
[330003150,1718919046403,-3412.56552457,0.00014,2]
[330003151,1718919046414,-1034.6085908,0.00014,2]
[330003152,1718919046426,-640.7472672,0.00014,2]
[330003153,1718919046438,-700.18760458,0.00014,2]
[330003154,1718919046449,-734.66404779,0.00014,2]
[330003155,1718919046460,-1270.47808865,0.00014,2]
[330003156,1718919046472,-177481.61209419,0.00014,2]
[330003157,1718919046481,-12372.97156649,0.00014,2]
[330003158,1718919046493,-1433.33247208,0.00014,2]
[330003159,1718919046506,-2619.39419034,0.00014,2]
[330003160,1718919046570,-2449.99146962,0.00014,2]
[330003161,1718919046581,-14166.94,0.00014,2]
[330003167,1718919099075,2015.0,0.00025,60]
[330003171,1718919336755,267.58574982,0.00015,14]
[330003172,1718919414852,1068.99,0.00026,90]
[330003173,1718919706782,485.56,0.00010854,2]
[330003236,1718920232359,-417.22414256,0.000112,2]
[330003245,1718920232756,-1930.69362434,0.000112,2]
[330003246,1718920232766,-1000.0,0.00012556,2]
[330003247,1718920232776,-2418.54,0.00012613,2]
[330003248,1718920232785,-150.0,0.00012617,2]
[330003249,1718920232796,-1208.45,0.00012618,2]
[330003250,1718920232805,-23880.0,0.00012618,2]
[330003251,1718920232814,-1027.37,0.00012626,2]
[330003252,1718920232824,-250.0,0.00012649,2]
[330003253,1718920232833,-179.97,0.0001273,2]
[330003255,1718920232842,-150.0,0.00012756,2]
[330003257,1718920232852,-250.0,0.00012771,2]
[330003259,1718920232861,-158.9,0.0001279,2]
[330003260,1718920232871,-250.0,0.00012795,2]
[330003261,1718920232880,-499.99,0.00012795,2]
[330003263,1718920232890,-879.73,0.00012795,2]
[330003265,1718920232899,-603.93,0.00012834,2]
[330003267,1718920232909,-158.9,0.00013012,2]
[330003269,1718920232918,-304.86533253,0.00013104,2]
[330003271,1718920232928,-485.56,0.00013118,2]
[330003273,1718920232937,-848.18,0.00013118,2]
[330003275,1718920232946,-2371.16167929,0.00013151,2]
[330003277,1718920232956,-158.9,0.00013234,2]
[330003278,1718920232965,-153.53,0.0001343,2]
[330003280,1718920232974,-153.53,0.0001344,2]
[330003281,1718920232983,-153.53,0.00013449,2]
[330003283,1718920232992,-158.9,0.00013456,2]
[330003285,1718920233002,-153.53,0.00013459,2]
[330003287,1718920233011,-351.88844729,0.00013467,2]
[330003289,1718920233021,-153.53,0.00013468,2]
[330003291,1718920233031,-1383.53,0.00013468,2]
[330003293,1718920233040,-153.53,0.00013478,2]
[330003294,1718920233049,-233.93,0.00013478,2]
[330003295,1718920233062,-153.53,0.00013488,2]
[330003296,1718920233071,-153.53,0.00013497,2]
[330003297,1718920233080,-2676.82821218,0.00013689,2]
[330003298,1718920233089,-152.77,0.00013699,2]
[330003299,1718920233098,-2320.79,0.00013699,2]
[330003300,1718920233106,-3585.79,0.00013699,2]
[330003301,1718920233115,-181.12,0.00013699,2]
[330003302,1718920233124,-176.94,0.00013747,2]
[330003303,1718920233133,-789.62442359,0.00013799,2]
[330003304,1718920233142,-1000.0,0.000138,2]
[330003305,1718920233151,-1028.20307181,0.00013871,2]
[330003306,1718920233160,-210.0,0.00013878,2]
[330003307,1718920233169,-1000.0,0.00013887,2]
[330003309,1718920233179,-500.0,0.00013887,2]
[330003311,1718920233189,-200.0,0.00013887,2]
[330003313,1718920233198,-200.0,0.00013888,2]
[330003315,1718920233206,-1000.0,0.00013888,2]
[330003317,1718920233216,-500.0,0.00013888,2]
[330003319,1718920233226,-200.0,0.00013888,2]